Cogmind - Beta 17 @@@ ROGUE MODE // 2026.07.21 @ 15:05:34 Player: Akl Result: Destroyed by BH-SFA(R) with Subdweller Beam Cannon Performance ------------- Evolutions (0) 0 Regions Visited (2) 400 Robots Destroyed (6) 30 Value Destroyed (200) 200 Prototype IDs (0) 0 Alien Tech Used (0) 0 Bonus (0) 0 TOTAL SCORE: 630 Bonus ------- None Cogmind --------- Core Integrity 0/250 Matter 262/300 Energy 250/250 System Corruption 0% Temperature Cool (9) Movement Core (250) Ox4 Location -10/Subcaves Parts ------- > --- POWER (1) -------- Ion Engine > --- PROPULSION (2) --- (None) > --- UTILITY (2) ------ Subdweller Optics > --- WEAPON (2) ------- Subdweller Machine Gun Barrage Gun > --- INVENTORY (5) ---- Ion Engine Small Storage Unit Datajack Mining Laser Peak State ------------ > --- POWER ------------ Ion Engine > --- PROPULSION ------- Aluminum Leg > --- UTILITY ---------- Subdweller Optics > --- WEAPON ----------- Light Assault Rifle Barrage Gun > --- INVENTORY -------- Ion Engine Small Storage Unit Datajack Mining Laser [Rating: 8] Favorites ----------- Power Ion Engine Engine Ion Engine Propulsion Aluminum Leg Leg Aluminum Leg Utility Subdweller Optics Device Subdweller Optics Weapon Light Assault Rifle Ballistic Gun Light Assault Rifle Build | -11 -10 -10 ------- Run | Yrd Mat Sub Slots Evolved . | . . . Power . | . . . Propulsion . | . . . Utility . | . . . Weapon . | . . . Parts Attached 8 | 4 . 4 Power 1 | . . 1 Engine 1 | . . 1 Core . | . . . Reactor . | . . . Propulsion 2 | 2 . . Treads . | . . . Leg 2 | 2 . . Wheel . | . . . Hover . | . . . Flight . | . . . Utility 1 | . . 1 Device 1 | . . 1 Storage . | . . . Processor . | . . . Hackware . | . . . Protection . | . . . Artifact . | . . . Weapon 4 | 2 . 2 Energy Gun . | . . . Energy Cannon . | . . . Ballistic Gun 4 | 2 . 2 Ballistic Cannon . | . . . Launcher . | . . . Special Weapon . | . . . Impact Weapon . | . . . Slashing Weapon . | . . . Piercing Weapon . | . . . Special Melee Weapon . | . . . Unidentified Prototypes . | . . . Parts Lost 4 | . . 4 Power . | . . . Propulsion 2 | . . 2 Utility . | . . . Weapon 2 | . . 2 Highest Loss Streak 3 | . . 3 To Critical Strikes . | . . . Average Backups 4 | 2 3 4 Power 1 | 1 2 1 Propulsion . | . . . Utility . | . 1 1 Weapon 1 | . . 1 Tool/Special . | . . . Unused Backups 4 | . . 4 Power 1 | . . 1 Propulsion . | . . . Utility 1 | . . 1 Weapon 1 | . . 1 Tool/Special 1 | . . 1 Average Slot Usage (%) 61 | . 57 62 Engine 3 | . . 4 Leg 23 | . 28 22 Device 5 | . . 7 Ballistic Gun 27 | . 28 27 Peak Build Rating 8 | 4 4 8 Average Rating 4 | 3 4 5 On Entrance 2 | . 4 4 Avg Prop Armor Cover (%) 23 | 24 24 23 Naked Turns . | . . . Heaviest Build 11 | 2 2 11 Greatest Support 20 | 20 3 10 Greatest Overweight (x) 1 | . . 1 Average Overweight (x) . | . . . Largest Inventory Capacity 5 | 5 5 5 Average Capacity 5 | 5 5 5 Most Carried 5 | 5 5 5 Average Carried 4 | 2 3 4 Final Capacity 5 | 5 5 5 Final Carried 5 | 3 5 4 Class Distribution -------------------- 100% | Mutant Dominant Class ---------------- Mutant | -10/Materials Mutant | -10/Subcaves Resources | -11 -10 -10 ----------- Run | Yrd Mat Sub Matter Collected 377 | 262 4 111 Remotely . | . . . Salvage Created 284 | 77 31 176 Parts 13 | . 1 12 Haulers Intercepted . | . . . Recyclers Shooed . | . . . Parts Field Recycled . | . . . Retrieved Matter . | . . . Parts Self-Destructed 7 | . . 7 Prevented . | . . . Parts Restored . | . . . Kills | -11 -10 -10 ------- Run | Yrd Mat Sub Combat Hostiles Destroyed 5 | . 1 4 Guns 5 | . 1 4 Classes Destroyed 3 | 1 1 1 Recycler 1 | 1 . . Grunt 1 | . 1 . Subdweller 4 | . . 4 Best Kill Streak 1 | 1 1 1 Combat Bots Only 1 | . 1 1 Max Kills in Single Turn 1 | 1 1 1 Gunslinging . | . . . Exploded . | . . . Melee . | . . . Uniques/NPCs Destroyed . | . . . Combat | -11 -10 -10 -------- Run | Yrd Mat Sub Hostile Shots Fired 52 | . 3 49 Missed 19 | . 2 17 Hits 33 | . 1 32 Projectile 33 | . 1 32 Damage Taken 766 | . 12 754 Core 254 | . . 254 Absorbed by Shields . | . . . Core Remaining (%) 100 | 100 . . Volleys Fired 53 | 11 2 40 Largest 2 | 2 2 2 Hottest 58 | 40 40 58 Shots Fired 101 | 22 4 75 Gun 101 | 22 4 75 Cannon . | . . . Launcher . | . . . Special . | . . . Kinetic 101 | 22 4 75 Thermal . | . . . Explosive . | . . . Electromagnetic . | . . . Robot Hit Streak 14 | 6 5 14 Robot Miss Streak 3 | 3 1 3 Penetration Max . | . . . Secondary Targets . | . . . Shots Hit Robots 78 | 17 2 59 Core Hits 20 | 3 2 15 Critical Kills . | . . . Critical Parts Destroyed . | . . . Critical Strikes 2 | . . 2 Destroy 2 | . . 2 Melee Attacks . | . . . Impact . | . . . Slashing . | . . . Piercing . | . . . Sneak Attacks . | . . . Combat Hostiles . | . . . Follow-up Attacks . | . . . Damage Inflicted 737 | 133 16 588 Guns 737 | 133 16 588 Cannons . | . . . Explosions . | . . . Melee . | . . . Ramming . | . . . Kinetic 737 | 133 16 588 Thermal . | . . . Explosive . | . . . Electromagnetic . | . . . Impact . | . . . Slashing . | . . . Piercing . | . . . Highest Corruption . | . . . Average Corruption . | . . . Corruption Purged . | . . . Corruption Blocked . | . . . Overload Shots . | . . . Overflow Damage . | . . . Projectiles . | . . . Explosions . | . . . Melee . | . . . Knockbacks . | . . . Impact . | . . . Kinetic . | . . . Secondary . | . . . Self-Inflicted Damage . | . . . Shots . | . . . Rammed . | . . . Targets Rammed . | . . . Kicked . | . . . Crushed . | . . . Highest Temperature 1 | . 1 . Average Temperature 1 | . 1 . Received Heat Transfer 120 | . 6 114 Siege Activations . | . . . Martial Activations . | . . . Shielding Activations . | . . . Robots Disrupted . | . . . Combat Hostiles . | . . . Robots Corrupted . | . . . Combat Hostiles . | . . . Parts Fried . | . . . Impact Corruptions . | . . . Robots Melted . | . . . Combat Hostiles . | . . . Parts Melted . | . . . Heat Transferred . | . . . Parts Sabotaged . | . . . Parts Stolen . | . . . Parts Stripped . | . . . Power Chain Reactions . | . . . Alert | -11 -10 -10 ------- Run | Yrd Mat Sub Maximum Alert Level . | . . . Low Security (%) 100 | 100 100 . Level 1 . | . . . Level 2 . | . . . Level 3 . | . . . Level 4 . | . . . Level 5 . | . . . High Security . | . . . Max Security . | . . . Peak Influence 20 | 5 20 . Initial 3 | . 3 . Average 2 | . 3 . Influence Increases 25 | 5 20 . Destroy 0b10 Robot/C 20 | . 20 . Destroy 0b10 Robot/NC 5 | 5 . . Influence Decreases 25 | . 25 . Entered New Map 2 | . 2 . Time Decay 23 | . 23 . Squads Dispatched . | . . . Investigation . | . . . Extermination . | . . . Reinforcement . | . . . Assault . | . . . Garrison . | . . . Intercept . | . . . Searches Triggered . | . . . Construction Impeded . | . . . Haulers Reinforced . | . . . Active Scanning Responses . | . . . Cargo Convoy Interrupts . | . . . Stealth | -11 -10 -10 --------- Run | Yrd Mat Sub Distress Signals . | . . . Communications Jammed . | . . . Distress Signals . | . . . Times Spotted 7 | . 2 5 Peak Tracking Total 2 | . 1 2 Tactical Retreats . | . . . Traps | -11 -10 -10 ------- Run | Yrd Mat Sub Traps Triggered . | . . . Indirectly . | . . . Trap Hack Attempts . | . . . Triggered . | . . . Disarmed . | . . . Reprogrammed . | . . . Reused . | . . . Traps Extracted . | . . . Installed . | . . . Triggered . | . . . Machines | -11 -10 -10 ---------- Run | Yrd Mat Sub Machines Disabled . | . . . Max in Single Turn . | . . . Machines Repaired . | . . . Machines Dismantled . | . . . Machines Sabotaged . | . . . Overloaded Fab Kills . | . . . Hacking | -11 -10 -10 --------- Run | Yrd Mat Sub Machines Accessed 2 | . 2 . Terminals 2 | . 2 . Fabricators . | . . . Repair Stations . | . . . Recycling Units . | . . . Scanalyzers . | . . . Garrison Access . | . . . Total Hacks 3 | . 3 . Successful . | . . . Failed 3 | . 3 . Catastrophic . | . . . Database Lockouts . | . . . Manual 1 | . 1 . Terminals 3 | . 3 . Fabricators . | . . . Repair Stations . | . . . Recycling Units . | . . . Scanalyzers . | . . . Garrison Access . | . . . Terminal Hacks . | . . . Fabricator Hacks . | . . . Repair Station Hacks . | . . . Recycling Unit Hacks . | . . . Scanalyzer . | . . . Garrison Access Hacks . | . . . Unauthorized Hacks . | . . . Terminals . | . . . Fabricators . | . . . Repair Stations . | . . . Recycling Units . | . . . Scanalyzers . | . . . Garrison Access . | . . . Data Cores Recovered . | . . . Used . | . . . Hacking Detections 2 | . 2 . Full Trace Events . | . . . Feedback Events . | . . . Feedback Blocked . | . . . Robot Schematics Acquired . | . . . Robots Built . | . . . Authchips . | . . . Time . | . . . Total Robot Build Rating . | . . . Part Schematics Acquired . | . . . Parts Built . | . . . Authchips . | . . . Time . | . . . Total Part Build Rating . | . . . Part Studies Acquired . | . . . Parts Repaired . | . . . Time . | . . . Parts Recycled . | . . . Recycled Matter . | . . . Retrieved Matter . | . . . Retrieved Components . | . . . Parts Scanalyzed . | . . . Part Schematics Acquired . | . . . Parts Damaged . | . . . Bothacking | -11 -10 -10 ------------ Run | Yrd Mat Sub Used RIF Installer . | . . . Robots Hacked . | . . . Non-combat . | . . . Combat . | . . . Robot Hacks Applied . | . . . Relay Couplers Released . | . . . Fabnet Peak Effective % . | . . . Robots Rewired . | . . . Allies Hacked . | . . . Hacks Repelled . | . . . Allies | -11 -10 -10 -------- Run | Yrd Mat Sub Total Allies . | . . . Largest Group . | . . . Highest-Rated Group . | . . . Highest-Rated Ally . | . . . Total Orders . | . . . Ally Attacks . | . . . Total Damage . | . . . Kills . | . . . Allies Corrupted . | . . . Allies Melted . | . . . Intel | -11 -10 -10 ------- Run | Yrd Mat Sub Active Infowar (turns) 174 | . . 174 Optics 174 | . . 174 Robot Analysis Total . | . . . Derelict Logs Recovered 1 | . . 1 Drone Launches . | . . . Drone Recoveries . | . . . Exploration | -11 -10 -10 ------------- Run | Yrd Mat Sub Turns Passed 481 | 73 83 325 Spaces Moved 461 | 64 114 283 Core 399 | 62 114 223 Treads . | . . . Legs 62 | 2 . 60 Wheels . | . . . Hover . | . . . Flight . | . . . Fastest Speed 50 | 50 50 50 Average Speed 64 | 52 50 72 Slowest Speed 190 | 120 50 190 Overloaded Moves . | . . . Propulsion Burnouts . | . . . Robots Hopped . | . . . Potential Cave-ins . | . . . Cave-ins Triggered . | . . . Exploration Rate (%) 14 | 3 25 15 Regions Visited 2 Branch Regions 1 Pre-discovered Areas 1 | . . 1 Known Exits Taken . | . . . Unknown Exits Taken 2 | 1 1 . Scrap Searched . | . . . Spaces Dug . | . . . Terrain Destroyed . | . . . Melee . | . . . Projectile . | . . . AOE . | . . . Terrain Rammed . | . . . Walls Destroyed . | . . . Machines Disabled . | . . . Actions | -11 -10 -10 --------- Run | Yrd Mat Sub Total 564 | 85 136 343 Wait 26 | . 19 7 Move 459 | 63 113 283 Hop . | . . . Pick Up 13 | 7 2 4 Fast Attach 2 | . . 2 Attach 8 | 4 . 4 Detach . | . . . Swap . | . . . Drop 3 | . . 3 Fire 53 | 11 2 40 Melee . | . . . Ram . | . . . Kick . | . . . Crush . | . . . Escape Stasis . | . . . Rewire . | . . . Trap . | . . . Miscellaneous . | . . . Route ------- -11/Scrapyard -10/Materials -10/Subcaves History --------- Turn | Location | Event 7 | -11/Scrapyard | Discovered new exit (range 15) 74 | -11/Scrapyard | Entered Materials 134 | -10/Materials | Discovered new exit (range 8) 157 | -10/Materials | Entered Subcaves 159 | -10/Subcaves | Learned location of Zion (-6) 245 | -10/Subcaves | Shifting Twisted Machinery released Barrage Gun 329 | -10/Subcaves | Build established: Mutant 450 | -10/Subcaves | Core integrity fell below 50% 477 | -10/Subcaves | Core integrity fell below 20% 482 | -10/Subcaves | Destroyed by BH-SFA(R) with Subdweller Beam Cannon Last Messages --------------- 00317_ Acquired 10 matter. 00336_ Subatomizers dissect the Sub. Power Source. 00355_ 3X-H48(R) affixes Scrap Shield Fragment to Scrap Shield. 00364_ Aluminum Leg destroyed. 00368_ 3X-H48(R) destroyed. 00371_ Acquired 15 matter. 00373_ Acquired 10 matter. 00381_ Acquired Ion Engine. 00447_ Lgt. Assault Rifle destroyed. 00458_ 5G-K33(R) destroyed. 00461_ Acquired 22 matter. 00464_ Acquired Sub. Machine Gun. 00468_ Lgt. Assault Rifle destroyed. 00468_ Aluminum Leg destroyed. 00471_ BH-SFA(R) suffers critical hit (Destroy). 00475_ BH-SFA(R) affixes Scrap Shield Fragment to Scrap Shield. 00478_ BH-SFA(R) suffers critical hit (Destroy). Map ----- +----------------------------------------------------+ | ?????????????????????????????????????????????????? | | ?????????????????????????????????????????????????? | | ?????????????????????????????????????????????????? | | ?????????????????????????????????????????????????? | | ?????????????????????????????????????????????????? | | ??????????????????????????? #????????????????????? | | ??????????????????????????? #???????????????????? | | ??????????????????????????? ???#???????????????? | | ???????????????????????????# ##? ???????????????? | | ?????????????????????????### ## ???????????????? | | ?????????????????????????? ???????????????? | | ??????????????????????????? #???????????????? | | ???????????????????????????? ######??????????? | | ????????????????????????????? #??????????? | | ?????????????????????????????# #??????????? | | ?????????????????????????????# #??????????? | | ????????????????????????????## #??????????? | | ????????????????????????????# #???????????? | | ???????????????????????????## #???????????? | | ????????????????????????#### #???????????? | | ????????????????????????# #????????????? | | ???????????????????#????# ##???????????? | | ???????????????????# #### #?# #######?????? | | ???????????????????# #?# #?????? | | ??????????????????## ### # ##?????? | | ??????????????????# @## ### #### ##?????? | | ??????????????????###### R%! #?###??## ###???? | | ???????????????????????##!#! ##???????## #???? | | ????????????????????????#######?????????# #???? | | ????????????????????????????????????????# ##??? | | ???????????????????????????????????????## ##?? | | ???????????????????????????????????????# #?? | | ???????????????????????????????????????# #?? | | ???????????????????????????????????????# #?? | | ???????????????????????????????????????# ##? | | ???????????????????????????????????????# ## | | ???????????????????????????????????????# " | | ???????????????????????????????????????# | | ???????????????????????????????????????### " | | ?????????????????????????????????????????#### " | | ????????????????????????????????????????????# "" | | ???????????????????????????????????????????# ### | | ???????????????????????????????????????????# #?# | | ???????????????????????????????????????????# #?# | | ???????????????????????????????????????????## #?# | | ????????????????????????????????????????????###### | | ????????????????????????????????????????????????# | | ????????????????????????????????????????????????# | | ????????????????????????????????????????????????# | | ????????????????????????????????????????????????# | +----------------------------------------------------+ Best States ------------- Heat Dissipation 25 Energy Generation 10 Energy Capacity 250 Matter Stores 300 Matter Capacity 300 Sight Range 21 Terrain Scan Density 10 Evasion (%) 55 Item Schematics ----------------- None Robot Schematics ------------------ None Fabricated ------------ Nothing Repaired ---------- Nothing Studied --------- None Alien Tech Used ----------------- None Achievements -------------- None Challenges ------------ None Game ------ Seed SuperchargedImpulseDetonator Manual? 0 Play Time 00:09:04 Cumulative 26.2 hours Start 2026.07.21 @ 14:57:19 End 2026.07.21 @ 15:05:34 Sessions 1 Manual Loads 0 Difficulty Rogue Special Mode None Game No. 47 Rogue 47 Adventurer 0 Explorer 0 Win Type - Total 0 Types 0/0/0/0/0/0/0/0/0/0 Lore% 15 Gallery% 22 Achievement% 17 Wizard Run 0 Options --------- Layout 1 ASCII 0 Keyboard 0 Movement Mouse Keybinds 0 Fullscreen 1 Font 24/Smallcaps Map View 50x35 Zoom Use 0% Tactical HUD 1 Map Filters NONE Filters NONE Steam 1 RUN: 09128c9a-4c5e-4c4f-9b3d-a9ebf7d34069